Cogmind - Beta 14 @@@ ROGUE MODE // 2024.12.18 @ 19:32:26 Player: abnormality Result: Destroyed by H-61 Shepherd with Heavy Assault Cannon Performance ------------- Evolutions (2) 1000 Regions Visited (4) 800 Robots Destroyed (57) 285 Value Destroyed (1245) 1245 Prototype IDs (2) 40 Alien Tech Used (0) 0 Bonus (-517) -517 TOTAL SCORE: 2853 Bonus ------- High Alert Combat Kills 72 Follower Combat Kills 132 Friendly Fire -721 Cogmind --------- Core Integrity 0/550 Matter 300/300 Energy 100/100 System Corruption 0% Temperature Cool (0) Movement Core (50) Location -8/Materials Parts ------- > --- POWER (2) -------- (None) > --- PROPULSION (4) --- (None) > --- UTILITY (3) ------ (None) > --- WEAPON (2) ------- (None) > --- INVENTORY (5) ---- Small Storage Unit Small Storage Unit Huge Storage Unit Peak State ------------ > --- POWER ------------ Light Ion Engine Improved Ion Engine > --- PROPULSION ------- Improved Aluminum Leg Improved Aluminum Leg Improved Aluminum Leg Improved Aluminum Leg > --- UTILITY ---------- Huge Storage Unit Hardened Light Armor Plating Tractor Beam > --- WEAPON ----------- Improved EM Shotgun Light EM Pulse Cannon > --- INVENTORY -------- Improved Aluminum Leg Improved Aluminum Leg Small Storage Unit Small Storage Unit Large Storage Unit Small Laser Small Laser [Rating: 20] Favorites ----------- Power Light Ion Engine Engine Light Ion Engine Propulsion Aluminum Leg Leg Aluminum Leg Wheel Wheel Utility Large Storage Unit Device Tractor Beam Storage Large Storage Unit Protection Core Shielding Weapon Small Laser Energy Gun Small Laser Energy Cannon Light EM Pulse Cannon Ballistic Gun Light Assault Rifle Launcher Grenade Launcher Build | -11 -10 -9 -9 -8 ------- Run | Yrd Mat Mat Sto Mat Slots Evolved 4 | . . 2 . 2 Power 1 | . . 1 . . Propulsion 2 | . . . . 2 Utility 1 | . . 1 . . Weapon . | . . . . . Parts Attached 51 | 7 1 3 31 9 Power 10 | 1 . 1 7 1 Engine 10 | 1 . 1 7 1 Core . | . . . . . Reactor . | . . . . . Propulsion 17 | 2 . . 11 4 Treads . | . . . . . Leg 14 | 2 . . 8 4 Wheel 3 | . . . 3 . Hover . | . . . . . Flight . | . . . . . Utility 13 | 2 . 2 7 2 Device 3 | 1 . . 2 . Storage 5 | 1 . 1 2 1 Processor . | . . . . . Hackware . | . . . . . Protection 5 | . . 1 3 1 Artifact . | . . . . . Weapon 11 | 2 1 . 6 2 Energy Gun 7 | 1 . . 4 2 Energy Cannon 1 | . . . 1 . Ballistic Gun 2 | 1 . . 1 . Ballistic Cannon . | . . . . . Launcher 1 | . 1 . . . Special Weapon . | . . . . . Impact Weapon . | . . . . . Slashing Weapon . | . . . . . Piercing Weapon . | . . . . . Special Melee Weapon . | . . . . . Unidentified Prototypes 2 | . . . 2 . Parts Lost 33 | . . . 18 15 Power 10 | . . . 7 3 Propulsion 9 | . . . 4 5 Utility 6 | . . . 3 3 Weapon 8 | . . . 4 4 Highest Loss Streak 14 | . . . 6 14 To Critical Strikes 1 | . . . 1 . Average Slot Usage (%) 81 | . 100 92 80 59 Engine 18 | . 14 22 19 8 Leg 16 | . 28 22 14 24 Wheel 1 | . . . 1 . Device 6 | . 14 3 5 3 Storage 11 | . 14 11 11 9 Protection 5 | . . 11 5 3 Energy Gun 12 | . 1 . 14 7 Energy Cannon 1 | . . . 2 3 Ballistic Gun 4 | . 14 11 3 . Launcher 2 | . 12 11 . . Peak Build Rating 20 | 7 7 9 17 20 Average Rating 9 | 5 7 8 10 11 On Entrance 8 | . 7 7 9 17 Naked Turns 9 | . . . . 9 Heaviest Build 103 | 11 13 36 103 103 Greatest Support 52 | 20 20 20 26 52 Greatest Overweight (x) 6 | 1 . 1 3 6 Average Overweight (x) 1 | . . . 2 1 Largest Inventory Capacity 25 | 8 8 15 25 25 Average Capacity 14 | 7 8 8 16 15 Most Carried 11 | 4 5 6 11 8 Average Carried 5 | 2 3 3 5 5 Final Capacity 25 | 8 8 15 25 5 Final Carried 9 | 3 5 5 9 3 Class Distribution -------------------- 66% | Mutant 16% | Commander-Mutant 16% | Scavenger-Mutant Dominant Class ---------------- Mutant | -10/Materials Mutant | -9/Materials Mutant | -9/Storage Mutant | -8/Materials Resources | -11 -10 -9 -9 -8 ----------- Run | Yrd Mat Mat Sto Mat Matter Collected 830 | 284 32 3 471 40 Remotely 130 | . . . 130 . Salvage Created 1932 | 166 52 37 1320 357 Parts 131 | 17 5 6 89 14 Haulers Intercepted 3 | . 1 . 2 . Recyclers Shooed . | . . . . . Parts Field Recycled . | . . . . . Retrieved Matter . | . . . . . Parts Self-Destructed . | . . . . . Prevented . | . . . . . Kills | -11 -10 -9 -9 -8 ------- Run | Yrd Mat Mat Sto Mat Combat Hostiles Destroyed 33 | . . 2 26 5 Guns 27 | . . . 24 3 Cannons 1 | . . . 1 . AOE 5 | . . 2 1 2 Classes Destroyed 12 | 2 2 1 6 1 Worker 3 | . . . 3 . Builder 4 | . . . 3 1 Tunneler 5 | 5 . . . . Hauler 3 | . 1 . 2 . Recycler 3 | 1 . . 1 1 Drone 1 | . . . 1 . Watcher 2 | . 1 1 . . Swarmer 7 | . . . 7 . Grunt 24 | . . 2 18 4 Brawler 1 | . . . 1 . Duelist 1 | . . . . 1 Sentry 4 | . . . 4 . Best Kill Streak 6 | 2 1 3 4 6 Combat Bots Only 4 | . . 2 4 4 Max Kills in Single Turn 5 | 1 1 2 5 3 Gunslinging . | . . . . . Exploded 2 | . . 1 1 2 Melee . | . . . . . Uniques/NPCs Destroyed . | . . . . . Combat | -11 -10 -9 -9 -8 -------- Run | Yrd Mat Mat Sto Mat Hostile Shots Fired 311 | . . 10 158 143 Missed 86 | . . 2 43 41 Damage Taken 3325 | . 35 179 1446 1665 Core 783 | . . 9 184 590 Absorbed by Shields . | . . . . . Redirected to Shielding 27 | . . 2 25 . Regen/Repaired (Parts) 2 | . . 2 . . Core Remaining (%) 83 | 100 100 . 51 . Volleys Fired 150 | 14 2 5 111 18 Largest 2 | 2 2 2 2 2 Hottest 101 | 60 50 50 101 101 Shots Fired 245 | 28 4 10 178 25 Gun 228 | 28 2 5 170 23 Cannon 7 | . . . 5 2 Launcher 10 | . 2 5 3 . Special . | . . . . . Kinetic 70 | 14 2 5 49 . Thermal 137 | 14 . . 109 14 Explosive 10 | . 2 5 3 . Electromagnetic 28 | . . . 17 11 Robot Hit Streak 16 | 4 7 9 16 5 Robot Miss Streak 3 | 2 . 1 3 3 Penetration Max . | . . . . . Secondary Targets 2 | . . . . 2 Max Gunslinging Chain 1 | . . . . 1 Shots Hit Robots 149 | 14 4 6 108 17 Core Hits 97 | 8 4 7 63 15 Critical Kills 1 | . . . 1 . Critical Parts Destroyed . | . . . . . Critical Strikes 1 | . . . 1 . Destroy 1 | . . . 1 . Melee Attacks . | . . . . . Impact . | . . . . . Slashing . | . . . . . Piercing . | . . . . . Sneak Attacks . | . . . . . Combat Hostiles . | . . . . . Follow-up Attacks . | . . . . . Damage Inflicted 3004 | 155 71 268 1762 748 Guns 1686 | 155 16 22 1248 245 Cannons 90 | . . . 45 45 Explosions 1228 | . 55 246 469 458 Melee . | . . . . . Ramming . | . . . . . Kinetic 388 | 44 16 22 306 . Thermal 1692 | 111 . . 1000 581 Explosive 541 | . 55 246 240 . Electromagnetic 383 | . . . 216 167 Impact . | . . . . . Slashing . | . . . . . Piercing . | . . . . . Highest Corruption 3 | . . . 3 . Average Corruption 2 | . . . 2 . Corruption Purged . | . . . . . Corruption Blocked . | . . . . . Effects 10 | . . . 10 . Message Errors 3 | . . . 3 . Matter Fused 1 | . . . 1 . Heat Flow Errors 2 | . . . 2 . Data Loss (minor) 2 | . . . 2 . Data Loss (major) 1 | . . . 1 . Misfires 1 | . . . 1 . Overload Shots . | . . . . . Overflow Damage 6 | . . . 6 . Projectiles . | . . . . . Explosions 6 | . . . 6 . Melee . | . . . . . Knockbacks . | . . . . . Impact . | . . . . . Kinetic . | . . . . . Secondary . | . . . . . Self-Inflicted Damage 380 | . 35 82 263 . Shots 12 | . 1 3 8 . Rammed . | . . . . . Targets Rammed . | . . . . . Kicked . | . . . . . Crushed . | . . . . . Highest Temperature 345 | 40 10 44 276 345 Average Temperature 70 | 20 7 22 58 165 Received Heat Transfer 1416 | . . 60 420 936 Effects 3 | . . . 1 2 Energy Bleed 1 | . . . 1 . Short Circuit 1 | . . . . 1 Damage (minor) 1 | . . . . 1 Siege Activations . | . . . . . Robots Corrupted . | . . . . . Combat Hostiles . | . . . . . Parts Fried 1 | . . . . 1 Impact Corruptions . | . . . . . Robots Melted . | . . . . . Combat Hostiles . | . . . . . Parts Melted 2 | . . . 2 . Heat Transferred 2975 | 250 . . 2100 625 Parts Sabotaged . | . . . . . Parts Stolen . | . . . . . Parts Stripped . | . . . . . Power Chain Reactions 5 | . . . 3 2 Alert | -11 -10 -9 -9 -8 ------- Run | Yrd Mat Mat Sto Mat Peak Influence 678 | 30 73 183 678 350 Initial 277 | . 19 30 76 277 Average 339 | 12 37 80 426 299 Maximum Alert Level 2 | . . . 2 1 Low Security (%) 39 | 100 100 100 25 . Level 1 15 | . . . 12 100 Level 2 45 | . . . 61 . Level 3 . | . . . . . Level 4 . | . . . . . Level 5 . | . . . . . High Security . | . . . . . Max Security . | . . . . . Squads Dispatched 10 | . . 1 7 2 Investigation . | . . . . . Extermination . | . . . . . Reinforcement 5 | . . 1 3 1 Assault 1 | . . . 1 . Garrison 4 | . . . 3 1 Intercept . | . . . . . Searches Triggered . | . . . . . Construction Impeded 1 | . . . . 1 Haulers Reinforced . | . . . . . Active Scanning Responses . | . . . . . Cargo Convoy Interrupts . | . . . . . Stealth | -11 -10 -9 -9 -8 --------- Run | Yrd Mat Mat Sto Mat Distress Signals 8 | . . 1 6 1 Communications Jammed . | . . . . . Distress Signals . | . . . . . Times Spotted 68 | . 1 5 49 13 Peak Tracking Total 7 | . 1 2 6 7 Tactical Retreats 11 | . . . 11 . Traps | -11 -10 -9 -9 -8 ------- Run | Yrd Mat Mat Sto Mat Traps Triggered 2 | . . . 2 . Indirectly . | . . . . . Trap Hack Attempts . | . . . . . Triggered . | . . . . . Disarmed 5 | . . . 5 . Reprogrammed . | . . . . . Reused . | . . . . . Traps Extracted . | . . . . . Installed . | . . . . . Triggered . | . . . . . Machines | -11 -10 -9 -9 -8 ---------- Run | Yrd Mat Mat Sto Mat Machines Disabled 5 | . 1 1 3 . Max in Single Turn 1 | . 1 1 1 . Machines Repaired . | . . . . . Machines Dismantled . | . . . . . Machines Sabotaged . | . . . . . Overloaded Fab Kills . | . . . . . Hacking | -11 -10 -9 -9 -8 --------- Run | Yrd Mat Mat Sto Mat Machines Accessed 6 | . . 1 4 1 Terminals 4 | . . . 4 . Fabricators . | . . . . . Repair Stations 1 | . . 1 . . Recycling Units . | . . . . . Scanalyzers . | . . . . . Garrison Access 1 | . . . . 1 Total Hacks 12 | . . 2 8 2 Successful 8 | . . 2 6 . Failed 4 | . . . 2 2 Catastrophic 1 | . . . . 1 Database Lockouts . | . . . . . Manual 1 | . . . 1 . Terminals 8 | . . . 8 . Fabricators . | . . . . . Repair Stations 2 | . . 2 . . Recycling Units . | . . . . . Scanalyzers . | . . . . . Garrison Access 2 | . . . . 2 Terminal Hacks 6 | . . . 6 . Open Door 2 | . . . 2 . Alert Level 1 | . . . 1 . Locate Traps 1 | . . . 1 . Disarm Traps 1 | . . . 1 . Dispatch Records 1 | . . . 1 . Fabricator Hacks . | . . . . . Repair Station Hacks 2 | . . 2 . . Scan Component 1 | . . 1 . . Repair 1 | . . 1 . . Recycling Unit Hacks . | . . . . . Scanalyzer . | . . . . . Garrison Access Hacks . | . . . . . Unauthorized Hacks . | . . . . . Terminals . | . . . . . Fabricators . | . . . . . Repair Stations . | . . . . . Recycling Units . | . . . . . Scanalyzers . | . . . . . Garrison Access . | . . . . . Data Cores Recovered . | . . . . . Used . | . . . . . Hacking Detections 2 | . . 1 . 1 Full Trace Events 1 | . . . . 1 Feedback Events . | . . . . . Feedback Blocked . | . . . . . Robot Schematics Acquired . | . . . . . Robots Built . | . . . . . Authchips . | . . . . . Time . | . . . . . Total Robot Build Rating . | . . . . . Part Schematics Acquired . | . . . . . Parts Built . | . . . . . Authchips . | . . . . . Time . | . . . . . Total Part Build Rating . | . . . . . Parts Repaired 1 | . . 1 . . Time 26 | . . 26 . . Parts Recycled . | . . . . . Recycled Matter . | . . . . . Retrieved Matter . | . . . . . Retrieved Components . | . . . . . Parts Scanalyzed . | . . . . . Part Schematics Acquired . | . . . . . Parts Damaged . | . . . . . Bothacking | -11 -10 -9 -9 -8 ------------ Run | Yrd Mat Mat Sto Mat Used RIF Installer . | . . . . . Robots Hacked . | . . . . . Non-combat . | . . . . . Combat . | . . . . . Robot Hacks Applied . | . . . . . Relay Couplers Released . | . . . . . Fabnet Peak Effective % . | . . . . . Robots Rewired . | . . . . . Allies Hacked . | . . . . . Hacks Repelled . | . . . . . Allies | -11 -10 -9 -9 -8 -------- Run | Yrd Mat Mat Sto Mat Total Allies 10 | . . . 10 . Largest Group 10 | . . . 10 . Highest-Rated Group 88 | . . . 88 . Highest-Rated Ally 16 | . . . 16 . Total Orders . | . . . . . Ally Attacks 58 | . . . 58 . Total Damage 526 | . . . 526 . Kills 9 | . . . 9 . Allies Corrupted . | . . . . . Allies Melted . | . . . . . Intel | -11 -10 -9 -9 -8 ------- Run | Yrd Mat Mat Sto Mat Robot Analysis Total . | . . . . . Derelict Logs Recovered . | . . . . . Drone Launches 2 | . . . 2 . Drone Recoveries . | . . . . . Exploration | -11 -10 -9 -9 -8 ------------- Run | Yrd Mat Mat Sto Mat Turns Passed 2628 | 186 229 121 1933 159 Spaces Moved 1066 | 116 184 84 620 62 Core 46 | 21 . . . 25 Treads . | . . . . . Legs 941 | 95 184 84 541 37 Wheels 79 | . . . 79 . Hover . | . . . . . Flight . | . . . . . Fastest Speed 50 | 50 120 120 95 50 Average Speed 193 | 112 120 121 245 144 Slowest Speed 350 | 120 120 190 330 350 Overloaded Moves . | . . . . . Propulsion Burnouts . | . . . . . Robots Hopped . | . . . . . Cave-ins Triggered . | . . . . . Exploration Rate (%) 29 | 6 39 11 80 12 Regions Visited 4 Branch Regions 1 Pre-discovered Areas . | . . . . . Known Exits Taken . | . . . . . Unknown Exits Taken 4 | 1 1 1 1 . Scrap Searched . | . . . . . Spaces Dug . | . . . . . Terrain Destroyed 113 | . 9 32 62 10 Melee . | . . . . . Projectile . | . . . . . AOE 113 | . 9 32 62 10 Terrain Rammed . | . . . . . Walls Destroyed . | . . . . . Machines Disabled . | . . . . . Actions | -11 -10 -9 -9 -8 --------- Run | Yrd Mat Mat Sto Mat Total 1400 | 146 188 94 865 107 Wait 76 | . . . 62 14 Move 1062 | 115 183 83 619 62 Hop . | . . . . . Pick Up 47 | 10 2 3 31 1 Fast Attach . | . . . . . Attach 41 | 7 . 3 22 9 Detach 3 | . . . 1 2 Swap 11 | . 1 . 10 . Drop 10 | . . . 9 1 Fire 150 | 14 2 5 111 18 Melee . | . . . . . Ram . | . . . . . Kick . | . . . . . Crush . | . . . . . Escape Stasis . | . . . . . Rewire . | . . . . . Trap . | . . . . . Miscellaneous . | . . . . . Route ------- -11/Scrapyard -10/Materials (discovered 2 exits: *Mat / [*Min]) -9/Materials -9/Storage -8/Materials (discovered 1 exit: [*Fac]) History --------- Turn | Location | Event 13 | -11/Scrapyard | Discovered new exit (range 14) 187 | -11/Scrapyard | Entered Materials 309 | -10/Materials | Build established: Mutant 356 | -10/Materials | Discovered new exit (range 7) 374 | -10/Materials | Discovered new exit (range 15) 416 | -10/Materials | Entered another Materials area 416 | -9/Materials | Evolved 2 slots: Power x1, Utility x1 477 | -9/Materials | Repaired Seismic Detector? 496 | -9/Materials | Discovered new exit (range 6) 537 | -9/Materials | Entered Storage 671 | -9/Storage | Lost 3 parts (2n1w) 922 | -9/Storage | Garrison activated, responded to threat 1119 | -9/Storage | Lost 6 parts (3p1n2w) 1241 | -9/Storage | Lost 3 parts (1p1u1w) 1367 | -9/Storage | Assisted by bots powering up and referring to "LRC-V3" 1677 | -9/Storage | Build established: Commander-Mutant 1847 | -9/Storage | Lost 7 allies 2137 | -9/Storage | First assault squad dispatched 2385 | -9/Storage | Discovered new exit (range 16) 2391 | -9/Storage | Build established: Mutant 2470 | -9/Storage | Entered Materials 2470 | -8/Materials | Evolved 2 slots: Propulsion x2 2582 | -8/Materials | Garrison activated, responded to threat 2591 | -8/Materials | Core integrity fell below 50% 2617 | -8/Materials | Lost 14 parts (3p5n2u4w) 2623 | -8/Materials | Core integrity fell below 20% 2628 | -8/Materials | Discovered new exit (range 10) 2629 | -8/Materials | Destroyed by H-61 Shepherd with Heavy Assault Cannon Last Messages --------------- 02572_ U-05 Engineer lays Concrete. 02572_ K-01 Serf collects debris. 02572_ Imp. Aluminum Leg destroyed. 02573_ U-05 Engineer lays Concrete. 02575_ U-05 Engineer builds a Wall. 02576_ K-01 Serf collects debris. 02576_ Imp. Aluminum Leg destroyed. 02579_ U-05 Engineer builds a Wall. 02582_ G-47 Trooper calls for garrison reinforcements. 02582_ ALERT: Activating Garrison Access M001. 02583_ Lgt. Ion Engine destroyed. 02583_ Critical hit (Burn: +37). 02584_ Imp. Aluminum Leg destroyed. 02586_ Sml. Laser destroyed. 02591_ T-07 Excavator destroyed. 02618_ Critical hit (Burn: +37). 02620_ Lrg. Storage Unit destroyed. 02622_ T-07 Excavator is excavating. 02628_ EXIT=FOUND 02629_ Penetrated by Slug. Map ----- +----------------------------------------------------+ | ????????????????????????????????????????????? | | ????????????????????????????????????????????? | | ????????????????????????????????????????????? | | ????????????????????????????????????????????? | | ????????????????????????????????????????????? | | ????????????????????????????????????????????? | | ????????????????????????????????????????????? | | ????????????????????????????????????????????? | | ????????????????????????????????????????????? | | ????????????????????????????????????????????? | | ????????????????????????????????????????????? | | ????????????????????????????????????????????? | | ????????????????????????????????????????????? | | ????????????????????????????????????????????? | | ????????????????????????????????????????????? | | ????????????????????????????????????????????? | | ???????????????????????????????????? ? ?????? | | ???????????????????????????????????? #????? | | ??????????????????????????????????? #????? | | ??????????????????????????????????? #????? | | ???????????????????####???????????# #????? | | ???????????????????? #???????????# #????? | | ??????????####+######t########+#### #????? | | ??????????# #????? | | ??????????# H % ^ +????? | | ??????????# @ "^ w #????? | | ????????????##+####### T """ """ #????? | | ?????????????????????# " """ "" #????? | | ?????????????????????# """ "" #????? | | ?????????????????????# g #????? | | ?????????????????????# #????? | | ?????????????????????# ###########% #????? | | ?????????????????????# #?????????# = #????? | | ?????????????????????##/##?????????# % #????? | | ?????????????????????? ??????????# !=#????? | | ????????????????????? ??????????#!%/#????? | | ???????????????????? ?????????#% *##???? | | ??????????????????? ?????????# [ "#???? | | ?????????????????? ?????????#! %"#???? | | ?????????????????? ???????#%!% #??? | | ?????????????????# ???????##= # #### | | ?????????????????###/####/#??####### #### ! | | ??????????????????? ??? % | | ??????????????????? ??? | | ????????????????????????################### | | ??????????????????????????????????????????# | | ??????????????????????????????????????????## | | ???????????????????????????????????????????# | | ???????????????????????????????????????????# | | ???????????????????????????????????????????# | +----------------------------------------------------+ Best States ------------- Heat Dissipation 31 Energy Generation 17 Energy Capacity 400 Matter Stores 300 Matter Capacity 300 Sight Range 16 Terrain Scan Density 10 Armor Coverage 150 Core Shielding 20 Evasion (%) 55 Item Schematics ----------------- None Robot Schematics ------------------ None Fabricated ------------ Nothing Alien Tech Used ----------------- None Achievements -------------- Significant Disruption Challenges ------------ None Game ------ Seed InertialCompactArticulator Manual? 0 Play Time 00:19:45 Cumulative 10.3 hours Start 2024.12.18 @ 18:50:52 End 2024.12.18 @ 19:32:26 Sessions 1 Manual Loads 0 Difficulty Rogue Special Mode None Game No. 56 Rogue 56 Adventurer 0 Explorer 0 Win Type - Total 0 Types 0/0/0/0/0/0/0/0/0 Lore% 10 Gallery% 16 Achievement% 19 Wizard Run 0 Options --------- Layout 0 ASCII 0 Keyboard 0 Movement Mouse Keybinds 0 Fullscreen 1 Font 18/SmallcapsGlow Map View 38x25 Zoom Use 98% Tactical HUD 1 Map Filters NONE Filters NONE Steam 1 RUN: 17d0aaa7-1956-4e75-8c83-fd231114f738